bitfinex-derivatives/quotes_BNBF0:USTF0_20250709
["timestamp","ask_amount","ask_price","bid_price","bid_amount"]
[1752078694593,1.69358596,663.28,662.9,1.69138105]
[1752078696495,1.69358596,663.29,662.89,1.69138105]
[1752078698204,1.69358596,663.29,662.9,1.884]
[1752078699605,1.69358596,663.3,662.9,1.884]
[1752078703104,1.69358596,663.29,662.9,1.884]
[1752078703903,1.69358596,663.3,662.9,1.884]
[1752078704505,1.69358596,663.31,662.9,1.884]
[1752078704805,1.69358596,663.3,662.9,1.884]
[1752078705710,1.69358596,663.31,662.9,1.884]
[1752078709211,1.69358596,663.3,662.9,1.884]
[1752078713915,1.69358596,663.28,662.91,1.69138105]
[1752078714819,1.69358596,663.28,662.92,1.69138105]
[1752078715716,1.69358596,663.26,662.94,1.69138105]
[1752078719120,1.69358596,663.28,662.92,1.69138105]
[1752078719325,1.69358596,663.38,662.99,1.69138105]
[1752078719524,1.69358596,663.39,662.97,1.69138105]
[1752078719720,1.69358596,663.4,662.97,1.69138105]
[1752078720223,1.69358596,663.39,662.97,1.69138105]
[1752078720418,1.69358596,663.44,662.92,1.69138105]
[1752078721419,1.69358596,663.44,662.91,1.69138105]
[1752078722320,1.69358596,663.45,662.9,3.57538105]
[1752078724026,1.69358596,663.46,662.9,1.884]
[1752078725428,1.69358596,663.47,662.9,1.884]
[1752078725723,1.69358596,663.46,662.9,1.884]
[1752078726227,1.69358596,663.46,662.89,1.69138105]
[1752078727429,1.69358596,663.47,662.89,1.69138105]
[1752078728427,1.69358596,663.47,662.88,1.69138105]
[1752078729027,1.69358596,663.47,662.89,4.28938105]
[1752078729531,1.69358596,663.47,662.89,2.598]
[1752078729728,1.69358596,663.47,662.89,4.28938105]
[1752078730432,1.69358596,663.44,662.93,1.69138105]
[1752078733433,1.69358596,663.45,662.93,1.69138105]
[1752078733633,2.25811462,663.58,662.93,1.69138105]
[1752078733634,1.69358596,663.44,662.93,1.69138105]
[1752078733930,1.69358596,663.45,662.92,1.69138105]
[1752078734629,1.69358596,663.45,662.93,1.69138105]
[1752078734933,1.69358596,663.44,662.93,1.69138105]
[1752078735330,1.69358596,663.45,662.93,1.69138105]
[1752078739234,1.69358596,663.45,662.94,1.69138105]
[1752078739433,1.69358596,663.45,662.93,1.69138105]
[1752078739635,3.38717193,663.72,662.93,1.69138105]
[1752078739636,1.69358596,663.46,662.93,1.69138105]
[1752078743839,1.69358596,663.45,662.95,1.69138105]
[1752078744533,1.69358596,663.44,662.96,1.69138105]
[1752078744737,1.69358596,663.44,662.95,1.69138105]
[1752078745434,1.69358596,663.44,662.96,1.69138105]
[1752078746738,1.69358596,663.43,662.95,1.69138105]
[1752078748735,1.69358596,663.43,662.96,1.69138105]
[1752078748943,1.69358596,663.44,662.95,1.69138105]
[1752078751345,1.69358596,663.43,662.95,1.69138105]
[1752078751742,1.69358596,663.44,662.95,1.69138105]
[1752078753344,1.69358596,663.43,662.95,1.69138105]
[1752078754446,1.69358596,663.43,662.96,1.69138105]
[1752078755848,1.69358596,663.43,662.97,1.972]
[1752078757647,5.64528656,664.12,662.97,1.972]
[1752078757648,1.69358596,663.44,662.97,1.972]
[1752078758957,1.69358596,663.43,662.97,1.972]
[1752078759852,1.69358596,663.45,662.97,1.972]
[1752078762756,1.69313329,663.45,662.97,1.972]
[1752078767366,1.69313329,663.44,662.97,1.972]
[1752078768663,1.69369169,663.44,662.97,1.972]
[1752078769768,1.69369169,663.42,662.97,3.66347773]
[1752078770666,1.69369169,663.42,662.98,1.69147773]
[1752078771466,1.69369169,663.41,662.98,1.69147773]
[1752078772366,1.69369169,663.41,662.99,1.69147773]
[1752078773471,1.69369169,663.4,663.0,1.69147773]
[1752078774367,2.25811462,663.51,662.97,1.972]
[1752078774567,1.69458734,663.4,663.0,1.69235764]
[1752078774773,1.69458734,663.39,663.01,1.69235764]
[1752078776372,1.69458734,663.38,663.02,1.69235764]
[1752078778373,1.69458734,663.36,663.04,1.69235764]
[1752078778579,1.69458734,663.39,663.0,1.69235764]
[1752078779975,1.69458734,663.4,662.99,1.69235764]
[1752078781079,1.69458734,663.4,662.98,1.69235764]
[1752078781279,1.69458734,663.47,662.97,1.972]
[1752078781780,1.69458734,663.51,662.97,1.972]
[1752078782379,1.69458734,663.52,662.97,1.972]
[1752078783582,1.69458734,663.51,662.97,1.972]
[1752078784377,1.69458734,663.52,662.97,1.972]
[1752078789786,1.69458734,663.51,662.97,1.972]
[1752078790487,1.69458734,663.52,662.97,1.972]
[1752078791082,1.69458734,663.45,663.0,1.69235764]
[1752078792484,1.69458734,663.43,663.03,1.69235764]
[1752078792885,1.69458734,663.44,663.01,1.69235764]
[1752078793082,1.69458734,663.45,663.01,1.69235764]
[1752078793483,1.69458734,663.45,663.0,1.69235764]
[1752078793688,3.38717193,663.73,662.97,1.972]
[1752078793689,1.69458734,663.54,662.97,1.972]
[1752078795690,1.69458734,663.53,662.97,1.972]
[1752078797292,1.69458734,663.54,662.97,1.972]
[1752078797591,1.69458734,663.53,662.97,1.972]
[1752078803596,1.69458734,663.48,662.97,1.972]
[1752078807197,1.69458734,663.46,662.99,1.69235764]
[1752078808800,1.69458734,663.46,662.98,1.69235764]
[1752078809100,1.69458734,663.56,662.97,1.972]
[1752078809396,1.69458734,663.57,662.97,1.972]
[1752078815005,1.69458734,663.57,662.83,1.69235764]
[1752078815405,1.69458734,663.57,662.84,1.69235764]
[1752078816605,1.69458734,663.57,662.83,1.69235764]
[1752078817806,1.69458734,663.57,662.84,1.886]
[1752078819009,1.69458734,663.51,662.92,1.69235764]
[1752078823413,1.69458734,663.5,662.92,1.69235764]
[1752078823909,1.69458734,663.51,662.92,1.69235764]
[1752078824311,1.69458734,663.5,662.92,1.69235764]
[1752078824513,1.69458734,663.5,662.93,1.69235764]
[1752078824809,1.69458734,663.5,662.92,1.69235764]
[1752078825809,1.69458734,663.45,662.99,1.69235764]
[1752078826613,1.69458734,663.44,663.01,1.69235764]
[1752078827413,1.69458734,663.43,663.01,1.69235764]
[1752078828013,1.69458734,663.43,663.02,1.69235764]
[1752078828413,1.69458734,663.42,663.03,1.69235764]
[1752078828714,1.69458734,663.42,663.04,1.69235764]
[1752078830513,1.69458734,663.42,663.03,1.69235764]
[1752078830916,1.69458734,663.42,663.04,1.69235764]
[1752078831312,1.69458734,663.42,663.03,1.69235764]
[1752078831614,1.69458734,663.42,663.04,1.69235764]
[1752078833816,1.69458734,663.41,663.04,1.69235764]
[1752078834316,1.69458734,663.43,663.02,1.69235764]
[1752078834713,1.69458734,663.42,663.03,1.69235764]
[1752078840420,1.69458734,663.41,663.04,1.69235764]
[1752078840616,1.69458734,663.42,663.04,1.69235764]
[1752078841120,1.69458734,663.42,663.05,1.69235764]
[1752078841616,1.69458734,663.41,663.05,1.69235764]
[1752078842620,1.69458734,663.42,663.05,1.69235764]
[1752078844417,1.69458734,663.41,663.06,1.69235764]
[1752078846122,1.69458734,663.4,663.06,1.69235764]
[1752078846822,1.69458734,663.41,663.06,1.69235764]
[1752078847418,1.69458734,663.42,663.04,1.69235764]
[1752078848319,1.69458734,663.42,663.05,1.69235764]
[1752078852125,1.69458734,663.42,663.04,1.69235764]
[1752078853829,1.69458734,663.42,663.05,1.69235764]
[1752078854525,1.69458734,663.42,663.04,1.69235764]
[1752078855528,1.69458734,663.43,663.04,1.69235764]
[1752078855728,1.69458734,663.43,663.03,1.69235764]
[1752078856031,1.69458734,663.44,663.03,1.69235764]
[1752078857030,1.69458734,663.45,663.01,1.69235764]
[1752078857433,1.69458734,663.44,663.02,1.69235764]
[1752078857630,1.69458734,663.46,663.04,1.69235764]
[1752078863336,1.69458734,663.47,663.03,1.69235764]
[1752078865639,1.69458734,663.46,663.04,1.69235764]
[1752078865841,1.69458734,663.47,663.05,1.69235764]
[1752078866736,1.69458734,663.45,663.08,1.69235764]
[1752078867739,1.69458734,663.51,662.99,1.69235764]
[1752078869838,1.69458734,663.52,662.99,1.69235764]
[1752078872344,1.69458734,663.53,662.99,1.69235764]
[1752078872641,1.69458734,663.53,663.0,1.722]
[1752078873042,1.69458734,663.52,663.0,1.722]
[1752078873246,1.69458734,663.52,663.0,3.41435764]
[1752078873447,1.69458734,663.52,663.0,1.722]
[1752078874543,1.69458734,663.53,663.0,1.722]
[1752078875848,1.69458734,663.54,663.0,1.722]
[1752078877748,5.64528656,664.61,663.02,1.69235764]
[1752078877749,1.69458734,663.51,663.02,1.69235764]
[1752078880251,1.69458734,663.49,663.05,1.69235764]
[1752078880952,1.69458734,663.52,663.07,1.69235764]
[1752078884660,1.69458734,663.53,663.07,1.69235764]
[1752078887458,1.69458734,663.53,663.06,1.69235764]
[1752078887858,1.69458734,663.53,663.07,1.69235764]
[1752078888757,1.69458734,663.51,663.1,1.69235764]
[1752078889160,1.69458734,663.51,663.09,1.69235764]
[1752078893160,1.69458734,663.51,663.1,1.69235764]
[1752078893366,1.69458734,663.51,663.09,1.69235764]
[1752078893563,1.69458734,663.52,663.1,1.69235764]
[1752078894063,1.69458734,663.52,663.09,1.69235764]
[1752078894467,1.69458734,663.53,663.09,1.69235764]
[1752078894665,1.69458734,663.52,663.1,1.69235764]
[1752078895567,1.69458734,663.53,663.1,1.69235764]
[1752078896462,1.69458734,663.54,663.09,1.69235764]
[1752078897665,1.69458734,663.54,663.08,1.69235764]
[1752078898068,1.69458734,663.53,663.09,3.70535764]
[1752078898270,1.69458734,663.54,663.09,2.013]
[1752078901471,1.69458734,663.53,663.09,3.70535764]
[1752078903576,1.69458734,663.54,663.09,2.013]
[1752078907173,1.69458734,663.53,663.09,2.013]
[1752078908373,1.69458734,663.52,663.09,2.013]
[1752078908876,1.69458734,663.52,663.09,3.70535764]
[1752078910379,1.69458734,663.51,663.09,3.70535764]
[1752078911380,1.69458734,663.57,663.09,2.013]
[1752078911876,1.69458734,663.5,663.09,2.013]
[1752078914486,2.25811462,663.67,663.09,2.013]
[1752078914686,1.69438258,663.5,663.09,2.013]
[1752078918984,1.69438258,663.49,663.09,2.013]
[1752078919887,1.69438258,663.48,663.09,2.013]
[1752078922686,1.69438258,663.49,663.09,2.013]
[1752078923291,1.69438258,663.48,663.09,2.013]
[1752078924293,1.69438258,663.49,663.09,2.013]
[1752078926901,1.69438258,663.45,663.09,2.013]
[1752078931712,1.69438258,663.46,663.09,2.013]
[1752078935309,1.69438258,663.45,663.09,2.013]
[1752078937312,1.69438258,663.46,663.09,2.013]
[1752078941514,1.69438258,663.45,663.09,2.013]
[1752078942217,1.69438258,663.51,663.09,2.013]
[1752078948119,1.69438258,663.51,662.94,1.69080451]
[1752078949924,1.69438258,663.51,662.95,1.69080451]
[1752078950727,1.69438258,663.51,662.96,2.562]
[1752078952024,1.69438258,663.45,663.03,1.69080451]
[1752078952426,1.69438258,663.46,663.02,1.69080451]
[1752078953626,1.69438258,663.47,663.0,1.69080451]
[1752078956730,1.69438258,663.47,662.99,1.69080451]
[1752078957428,1.69438258,663.47,663.0,1.69080451]
[1752078958530,1.69438258,663.46,663.02,1.69080451]
[1752078960133,1.69438258,663.47,663.0,1.69080451]
[1752078962335,1.69438258,663.46,663.01,1.69080451]
[1752078963530,1.69438258,663.46,663.02,1.69080451]
[1752078964333,1.69438258,663.45,663.02,1.69080451]
[1752078966135,1.69438258,663.45,663.03,1.69080451]
[1752078966536,1.69438258,663.45,663.04,2.411]
[1752078966731,1.69438258,663.44,663.04,2.411]
[1752078967334,1.69438258,663.44,663.04,4.10180451]
[1752078969238,1.69438258,663.43,663.04,4.10180451]
[1752078969834,1.69438258,663.42,663.06,1.69080451]
[1752078970343,1.69438258,663.41,663.07,1.69080451]
[1752078971139,1.69438258,663.4,663.08,1.69080451]
[1752078974740,1.69438258,663.41,663.06,1.69080451]
[1752078974935,1.69438258,663.43,663.05,1.69080451]
[1752078976841,1.69438258,663.42,663.05,1.69080451]
[1752078977442,1.69438258,663.43,663.05,1.69080451]
[1752078977944,1.69438258,663.42,663.05,1.69080451]
[1752078979646,1.69438258,663.42,663.04,4.10180451]
[1752078979842,1.69438258,663.41,663.04,4.10180451]
[1752078980055,1.69438258,663.43,663.04,2.411]
[1752078984648,1.69438258,663.42,663.04,2.411]
[1752078984845,1.69438258,663.41,663.05,1.69080451]
[1752078989857,1.69438258,663.4,663.07,1.69080451]
[1752078990959,1.69438258,663.4,663.08,1.69080451]
[1752078995759,1.69438258,663.41,663.08,1.69080451]
[1752078997760,1.69438258,663.4,663.08,1.69080451]
[1752078997961,1.69438258,663.41,663.08,1.69080451]
[1752078998361,1.69438258,663.41,663.07,1.69080451]
[1752079000663,1.69438258,663.41,663.08,1.69080451]
[1752079001059,1.69438258,663.42,663.06,1.69080451]
[1752079003361,1.69438258,663.42,663.05,1.69080451]
[1752079003859,1.69438258,663.44,663.04,2.411]
[1752079004260,1.69438258,663.46,663.05,1.69080451]
[1752079004562,1.69438258,663.47,663.05,1.69080451]
[1752079008259,1.69438258,663.47,663.06,2.192]
[1752079010360,1.69438258,663.48,663.06,2.192]
[1752079010967,1.69438258,663.47,663.06,2.192]
[1752079013565,1.69438258,663.45,663.08,1.69080451]
[1752079016666,1.69438258,663.45,663.09,1.69080451]
[1752079018269,1.69438258,663.44,663.09,1.69080451]
[1752079018772,2.25811462,663.55,663.09,1.69080451]
[1752079018773,1.69438258,663.45,663.09,1.69080451]
[1752079022074,1.69438258,663.46,663.07,1.69080451]
[1752079023471,1.69438258,663.46,663.08,1.69080451]
[1752079026973,1.69438258,663.46,663.07,1.69080451]
[1752079027271,1.69438258,663.46,663.09,1.682]
[1752079031874,1.69438258,663.45,663.09,3.37280451]
[1752079038884,1.69438258,663.66,663.09,1.682]
[1752079039385,1.69438258,663.66,662.95,1.69080451]
[1752079040285,1.69438258,663.67,662.94,1.69080451]
[1752079043183,1.69438258,663.67,662.95,1.962]
[1752079043588,1.69438258,663.68,662.95,1.962]
[1752079047194,1.69438258,663.69,662.95,1.962]
[1752079048798,1.69438258,663.61,663.05,1.69080451]
[1752079048995,1.69438258,663.61,663.06,1.69080451]
[1752079049195,1.69438258,663.61,663.05,1.69080451]
[1752079049701,1.69438258,663.61,663.06,1.69080451]
[1752079050202,1.69438258,663.61,663.05,1.69080451]
[1752079050395,1.69438258,663.61,663.06,1.69080451]
[1752079050600,1.69438258,663.61,663.05,1.69080451]
[1752079051298,1.69438258,663.62,663.05,1.69080451]
[1752079051600,1.69438258,663.59,663.09,1.69080451]
[1752079053099,1.69438258,663.59,663.08,1.69080451]
[1752079055202,1.69438258,663.59,663.09,1.69080451]
[1752079057305,1.69438258,663.58,663.1,1.69080451]
[1752079058106,1.69438258,663.57,663.11,1.69080451]
[1752079060305,1.69438258,663.58,663.11,1.69080451]
[1752079061106,1.69438258,663.57,663.13,1.69080451]
[1752079061603,1.69438258,663.57,663.14,1.69080451]
[1752079061800,1.69438258,663.57,663.13,1.69080451]
[1752079063403,1.69438258,663.57,663.14,1.69080451]
[1752079064107,1.69438258,663.57,663.15,2.179]
[1752079070813,2.25811462,663.68,663.15,2.179]
[1752079071109,1.69305794,663.57,663.15,2.179]
[1752079076513,2.25811462,663.67,663.15,2.179]
[1752079076718,1.6931563,663.57,663.15,2.179]
[1752079077519,1.69318792,663.57,663.15,2.179]
[1752079078416,1.69318792,663.56,663.15,2.179]
[1752079079524,1.69318792,663.58,663.15,2.179]
[1752079080621,1.69318792,663.57,663.15,2.179]
[1752079082125,1.69318792,663.58,663.15,2.179]
[1752079082422,1.69335259,663.57,663.15,2.179]
[1752079083823,1.69335259,663.58,663.15,2.179]
[1752079084224,1.69335259,663.57,663.15,2.179]
[1752079089433,1.69335259,663.56,663.15,3.86845295]
[1752079090231,1.69335259,663.55,663.15,3.86845295]
[1752079092133,1.69335259,663.55,663.16,1.68945295]
[1752079092735,1.69335259,663.55,663.15,3.86845295]
[1752079093137,1.69335259,663.54,663.16,1.68945295]
[1752079095335,1.69335259,663.54,663.17,1.68945295]
[1752079096134,1.69335259,663.53,663.17,1.68945295]
[1752079097137,1.69335259,663.53,663.18,1.68945295]
[1752079098135,1.69335259,663.52,663.19,1.68945295]
[1752079099334,1.69335259,663.52,663.18,1.68945295]
[1752079101344,1.69335259,663.53,663.17,1.68945295]
[1752079106638,1.69335259,663.53,663.16,1.68945295]
[1752079107643,1.69335259,663.53,663.15,2.179]
[1752079107644,1.69335259,663.53,663.17,1.68945295]
[1752079109341,1.69335259,663.53,663.16,1.68945295]
[1752079110045,1.69335259,663.53,663.17,1.68945295]
[1752079112341,1.69335259,663.52,663.16,1.68945295]
[1752079113048,1.69335259,663.52,663.17,1.68945295]
[1752079114847,1.69335259,663.52,663.18,2.25]
[1752079119150,1.69335259,663.51,663.18,2.25]
[1752079119846,1.69335259,663.52,663.18,2.25]
[1752079120748,1.69335259,663.51,663.18,2.25]
[1752079121753,1.69335259,663.51,663.18,3.93945295]
[1752079124257,1.69335259,663.52,663.18,2.25]
[1752079124760,1.69335259,663.53,663.18,2.25]
[1752079126458,1.69335259,663.52,663.18,2.25]
[1752079127560,1.69335259,663.54,663.18,2.25]
[1752079131064,2.25811462,663.67,663.18,2.25]
[1752079131265,1.69591694,663.54,663.18,2.25]
[1752079134066,1.69591694,663.53,663.18,2.25]
[1752079137369,1.69591694,663.52,663.18,3.94203469]
[1752079139073,1.69591694,663.51,663.18,3.94203469]
[1752079139274,1.69591694,663.52,663.18,3.94203469]
[1752079140274,1.69591694,663.51,663.18,3.94203469]
[1752079140475,1.69591694,663.51,663.19,1.69203469]
[1752079141473,1.69591694,663.52,663.18,3.94203469]
[1752079144475,1.69591694,663.51,663.18,2.25]
[1752079145175,1.69591694,663.52,663.18,2.25]
[1752079145376,1.69591694,663.51,663.18,2.25]
[1752079145577,1.69591694,663.52,663.18,2.25]
[1752079145786,1.69591694,663.51,663.18,2.25]
[1752079146281,1.69591694,663.52,663.18,2.25]
[1752079147277,1.69591694,663.54,663.18,2.25]
[1752079148182,1.69591694,663.49,663.18,2.25]
[1752079148476,1.69591694,663.5,663.18,2.25]
[1752079149582,1.69591694,663.51,663.18,2.25]
[1752079149780,1.69591694,663.52,663.18,2.25]
[1752079150483,1.69591694,663.49,663.18,2.25]
[1752079150787,1.69591694,663.47,663.18,2.25]
[1752079151283,1.69591694,663.48,663.18,2.25]
[1752079152479,1.69591694,663.49,663.18,2.25]
[1752079154083,1.69591694,663.5,663.18,2.25]
[1752079156685,1.69591694,663.51,663.18,2.25]
[1752079157589,1.69591694,663.5,663.18,2.25]
[1752079159590,5.64528656,664.42,663.18,2.25]
[1752079159591,1.69591694,663.49,663.18,2.25]
[1752079162991,1.69255545,663.49,663.18,2.25]
[1752079163794,1.69255545,663.48,663.18,2.25]
[1752079164293,1.69255545,663.49,663.18,2.25]
[1752079171895,1.69255545,663.49,662.94,1.68855835]
[1752079172400,1.69255545,663.49,662.82,0.26231386]
[1752079172401,1.69255545,663.49,662.93,1.68855835]
[1752079173502,1.69255545,663.48,662.95,1.68855835]
[1752079175097,1.69255545,663.48,662.96,2.32]
[1752079175497,1.69255545,663.47,662.96,4.00855835]
[1752079176697,1.69255545,663.48,662.96,4.00855835]
[1752079177997,1.69255545,663.49,662.96,2.32]
[1752079178799,1.69255545,663.55,662.96,2.32]
[1752079178998,1.69255545,663.57,662.96,2.32]
[1752079184808,1.69255545,663.55,662.96,2.32]
[1752079188706,7.91551041,665.19,662.96,2.32]
[1752079188707,1.69255545,663.53,662.96,2.32]
[1752079188913,1.69255545,663.5,662.96,2.32]
[1752079191213,1.69255545,663.49,662.96,2.32]
[1752079191414,1.69203567,663.5,662.96,2.32]
[1752079192112,1.69203567,663.49,662.96,2.32]
[1752079192317,1.69203567,663.5,662.96,2.32]
[1752079194519,7.91551041,664.81,662.96,2.32]
[1752079194520,1.69203567,663.48,662.96,2.32]
[1752079194718,1.69203567,663.49,662.96,2.32]
[1752079196116,1.69203567,663.48,662.96,2.32]
[1752079198620,1.69203567,663.47,662.96,2.32]
[1752079200620,1.69203567,663.45,662.96,2.32]
[1752079203519,1.69203567,663.44,662.96,2.32]
[1752079204625,1.69203567,663.43,662.96,2.32]
[1752079207221,1.69203567,663.42,662.96,2.32]
[1752079208328,1.69203567,663.42,662.96,4.00820657]
[1752079208524,1.69203567,663.41,662.97,1.68820657]
[1752079210330,1.69203567,663.4,662.97,1.68820657]
[1752079210527,1.69203567,663.4,662.98,1.68820657]
[1752079212024,1.69203567,663.42,662.96,2.32]
[1752079213823,1.69203567,663.41,662.96,4.00820657]
[1752079215328,1.69203567,663.41,662.96,1.68820657]
[1752079215927,1.69203567,663.42,662.95,1.68820657]
[1752079218931,1.69203567,663.42,662.96,1.685]
[1752079219132,1.69203567,663.47,662.96,1.685]
[1752079221935,1.69203567,663.46,662.96,1.685]
[1752079225638,1.69203567,663.45,662.96,1.685]
[1752079229041,1.69203567,663.41,662.96,3.37320657]
[1752079229841,1.69203567,663.41,662.96,1.68820657]
[1752079230039,1.69203567,663.39,662.99,1.68820657]
[1752079230941,1.69203567,663.38,663.01,1.68820657]
[1752079232742,1.69203567,663.38,663.02,2.427]
[1752079233645,1.69203567,663.4,663.02,2.427]
[1752079235743,1.69203567,663.48,663.02,2.427]
[1752079236141,1.69203567,663.46,663.02,2.427]
[1752079239048,1.69203567,663.45,663.02,2.427]
[1752079239744,5.64528656,664.6,663.02,2.427]
[1752079239745,1.69203567,663.39,663.02,2.427]
[1752079243847,1.69203567,663.38,663.02,2.427]
[1752079245647,1.69203567,663.34,663.02,2.427]
[1752079248453,1.69203567,663.35,663.02,2.427]
[1752079249252,1.69203567,663.34,663.02,2.427]
[1752079249851,1.69203567,663.35,663.02,2.427]
[1752079252655,1.69203567,663.36,663.02,2.427]
[1752079253655,1.69203567,663.35,663.02,2.427]
[1752079258855,1.69203567,663.37,663.02,2.427]
[1752079268663,1.69203567,663.35,663.02,2.427]
[1752079268863,1.69203567,663.34,663.02,2.427]
[1752079269459,5.64528656,664.03,663.02,2.427]
[1752079269460,1.69203567,663.35,663.02,2.427]
[1752079271660,1.69203567,663.35,662.89,1.68820657]
[1752079272565,1.69203567,663.34,662.88,1.68820657]
[1752079274561,1.69203567,663.33,662.89,1.68820657]
[1752079275664,1.69203567,663.33,662.9,1.918]
[1752079276468,7.91551041,664.21,662.9,1.918]
[1752079276469,1.69380511,663.32,662.9,3.60805095]
[1752079278470,1.69380511,663.32,662.9,1.918]
[1752079281274,1.69380511,663.32,662.9,3.60805095]
[1752079284274,1.69380511,663.33,662.9,1.918]
[1752079286074,1.69380511,663.32,662.9,1.918]
[1752079289076,1.69380511,663.33,662.9,1.918]
[1752079290278,1.69380511,663.34,662.9,1.918]
[1752079290482,1.69380511,663.33,662.9,1.918]
[1752079290684,5.64528656,664.12,662.9,1.918]
[1752079290982,5.64826192,664.12,662.9,1.918]
[1752079291180,1.69448714,663.33,662.9,1.918]
[1752079292983,1.69448714,663.33,662.87,1.69072562]
[1752079293484,1.69448714,663.33,662.88,1.69072562]
[1752079294184,1.69448714,663.32,662.88,1.69072562]
[1752079295484,1.69448714,663.32,662.89,1.69072562]
[1752079295986,2.25931619,663.45,662.9,2.143]
[1752079296185,1.69516393,663.32,662.9,2.143]
[1752079297086,1.69516393,663.33,662.9,2.143]
[1752079298383,1.69516393,663.32,662.9,2.143]
[1752079299382,1.69516393,663.31,662.9,2.143]
[1752079300087,1.69516393,663.3,662.9,3.83436895]
[1752079301085,3.39032786,663.57,662.9,2.143]
[1752079301281,1.6961603,663.3,662.9,3.83536309]
[1752079302282,1.6961603,663.31,662.9,3.83536309]
[1752079303585,1.6961603,663.3,662.9,3.83536309]
[1752079304081,1.6961603,663.3,662.91,1.69236309]
[1752079305582,2.26154707,663.43,662.9,2.143]
[1752079305782,1.69618779,663.3,662.91,1.69220801]
[1752079306681,1.69618779,663.29,662.92,1.69220801]
[1752079306983,1.69618779,663.28,662.94,1.69220801]
[1752079308986,1.69618779,663.29,662.92,1.69220801]
[1752079311088,1.69618779,663.29,662.93,1.69220801]
[1752079312591,1.69620982,663.28,662.93,1.69222994]
[1752079312792,1.69620982,663.29,662.93,1.69222994]
[1752079315193,1.69620982,663.26,662.91,1.69222994]
[1752079315890,1.69620982,663.26,662.9,2.143]
[1752079315891,1.69620982,663.26,662.9,3.83522994]
[1752079316087,1.69620982,663.27,662.9,3.83522994]
[1752079318193,1.69620982,663.27,662.9,2.143]
[1752079318893,5.64826192,663.99,662.91,1.69222994]
[1752079318894,1.69620982,663.26,662.91,1.69222994]
[1752079322393,1.69620982,663.28,662.9,2.143]
[1752079322600,1.69620982,663.23,662.9,2.143]
[1752079323097,1.69620982,663.24,662.9,2.143]
[1752079323496,1.69620982,663.23,662.9,2.143]
[1752079324098,1.69620982,663.24,662.9,2.143]
[1752079327301,1.69620982,663.25,662.9,2.143]
[1752079329804,1.69620982,663.26,662.9,2.143]
[1752079331108,2.26154707,663.38,662.9,2.143]
[1752079331404,1.6949278,663.26,662.9,2.143]
[1752079332005,1.6949278,663.25,662.9,2.143]
[1752079332309,1.6949278,663.24,662.9,2.143]
[1752079333807,1.6949278,663.25,662.9,2.143]
[1752079334010,1.6949278,663.25,662.82,1.69127647]
[1752079336608,1.6949278,663.25,662.83,1.995]
[1752079337112,1.6949278,663.24,662.83,3.68627647]
[1752079337908,1.6949278,663.25,662.83,1.995]
[1752079343017,1.6949278,663.26,662.83,1.995]
[1752079350728,1.6949278,663.27,662.83,1.995]
[1752079352831,1.6949278,663.26,662.83,1.995]
[1752079359036,1.69428019,663.26,662.83,1.995]
[1752079360733,5.64826192,663.99,662.83,3.68566186]
[1752079360734,1.69428019,663.24,662.83,3.68566186]
[1752079362034,1.69428019,663.26,662.83,1.995]
[1752079362840,1.69428019,663.25,662.83,1.995]
[1752079363741,1.69428019,663.26,662.83,1.995]
[1752079364238,1.69428019,663.25,662.83,1.995]
[1752079366145,1.6946554,663.25,662.83,1.995]
[1752079368946,1.6946554,663.24,662.83,1.995]
[1752079369350,1.6946554,663.24,662.83,3.68607607]
[1752079371051,1.6946554,663.25,662.83,1.995]
[1752079373155,1.69536754,663.24,662.83,1.995]
[1752079374962,1.69536754,663.24,662.83,3.68679744]
[1752079375761,1.69536754,663.26,662.83,1.995]
[1752079378161,1.69536754,663.25,662.83,1.995]
[1752079380666,1.69536754,663.25,662.81,1.69179744]
[1752079380967,1.69536754,663.24,662.82,1.69179744]
[1752079381869,2.26154707,663.38,662.72,0.26240188]
[1752079382065,1.69634118,663.24,662.82,1.69335698]
[1752079382264,1.69634118,663.23,662.83,1.69335698]
[1752079383872,1.69634118,663.23,662.84,2.343]
[1752079385671,1.69634118,663.21,662.87,1.69335698]
[1752079385878,1.69634118,663.2,662.88,1.69335698]
[1752079387270,1.69634118,663.21,662.87,1.69335698]
[1752079388673,1.69634118,663.2,662.88,1.69335698]
[1752079389573,1.69634118,663.19,662.87,1.69335698]
[1752079390077,7.90756669,664.06,662.87,1.69335698]
[1752079390078,1.69634118,663.2,662.87,1.69335698]
[1752079390279,1.69634118,663.2,662.85,1.69335698]